bitfinex/quotes_ETHUSD_20241116
["timestamp","ask_amount","ask_price","bid_price","bid_amount"]
[1731798695620,3.1801,3144.6,3144.2,0.3244121]
[1731798695762,0.0795036,3144.7,3144.2,0.3244121]
[1731798695961,3.17985,3144.8,3144.3,3.18033]
[1731798696589,3.17995,3144.7,3144.1,3.96518]
[1731798696812,3.25945466,3144.7,3144.1,3.96518]
[1731798697016,3.17985,3144.8,3144.1,4.02878378]
[1731798697177,3.17985,3144.8,3144.2,3.24396259]
[1731798697378,3.17985,3144.8,3144.2,3.96487685]
[1731798697594,3.17985,3144.8,3144.2,3.96487744]
[1731798697768,3.17985,3144.8,3144.2,3.90127426]
[1731798697970,0.07950341,3144.7,3144.2,3.90127426]
[1731798698180,0.07950341,3144.7,3144.2,0.72091426]
[1731798698374,3.17985,3144.8,3144.2,3.90136426]
[1731798698616,0.22255634,3144.9,3144.2,0.72091426]
[1731798698617,0.05563969,3144.6,3144.2,0.72091426]
[1731798698913,0.07950347,3144.7,3144.1,0.7847]
[1731798698914,3.18017,3144.5,3144.1,0.7847]
[1731798699114,0.07950374,3144.4,3143.7,3.96559]
[1731798699278,3.18047,3144.2,3143.7,3.96559]
[1731798699693,0.05564063,3144.1,3143.7,3.96559]
[1731798699928,0.05564063,3144.1,3143.8,0.396559]
[1731798700902,3.18042,3144.3,3143.8,0.396559]
[1731798701102,0.05562963,3144.0,3143.8,0.396559]
[1731798701422,0.05561864,3143.9,3143.8,0.396559]
[1731798702013,3.18046,3144.2,3143.8,0.396559]
[1731798702213,0.05561864,3143.9,3143.8,0.396559]
[1731798702477,3.18046,3144.2,3143.8,0.396559]
[1731798702631,0.05561864,3143.9,3143.8,0.396559]
[1731798702833,3.18042,3144.3,3143.8,0.396559]
[1731798703000,0.05561864,3143.9,3143.8,0.396559]
[1731798703334,3.18042,3144.3,3143.8,0.396559]
[1731798703515,3.18029,3144.4,3143.8,3.64101953]
[1731798703720,0.05565162,3144.2,3143.9,3.62330195]
[1731798703920,3.17997,3144.7,3143.9,3.62330195]
[1731798703921,0.05566262,3144.3,3144.0,3.1806]
[1731798704123,0.05564063,3144.1,3144.0,3.1806]
[1731798704318,3.25947386,3144.7,3144.0,3.1806]
[1731798704632,3.25947386,3144.7,3144.0,3.96209]
[1731798705024,0.05565212,3144.6,3144.0,3.96209]
[1731798705206,0.05565212,3144.6,3144.1,3.18049]
[1731798705902,0.05565212,3144.6,3144.4,3.18024]
[1731798706324,3.17993,3144.8,3144.2,3.18044]
[1731798706525,0.05573146,3144.7,3144.2,3.18044]
[1731798706864,0.05573146,3144.7,3144.2,3.894698]
[1731798707270,0.05573146,3144.7,3144.3,3.18027]
[1731798707562,3.3228029,3144.9,3144.4,3.24378845]
[1731798707767,3.40230095,3144.9,3144.4,3.18019]
[1731798707969,0.05394265,3144.8,3144.4,3.18019]
[1731798709435,0.05394265,3144.8,3144.5,3.18015]
[1731798709618,0.05394265,3144.8,3144.5,3.18009]
[1731798709818,0.05394265,3144.8,3144.6,0.7815]
[1731798712646,0.05394265,3144.8,3144.3,3.18032]
[1731798712847,0.05394265,3144.8,3144.3,3.96182]
[1731798713387,0.05394265,3144.8,3144.5,3.18013]
[1731798713889,0.05394265,3144.8,3144.3,3.96182]
[1731798714038,0.05394265,3144.8,3144.4,3.18023]
[1731798714852,0.05394265,3144.8,3144.5,0.06359611]
[1731798715050,0.05394265,3144.8,3144.4,3.18023]
[1731798715285,0.05394265,3144.8,3144.4,0.714199]
[1731798715483,0.05394265,3144.8,3144.3,3.96176]
[1731798716647,3.23380265,3144.8,3144.3,3.96176]
[1731798717185,3.23380265,3144.8,3143.6,0.96581333]
[1731798717186,3.18011,3144.6,3144.0,3.96209]
[1731798717639,0.05393701,3144.5,3144.0,3.96209]
[1731798717984,0.05393701,3144.5,3144.1,3.18055]
[1731798718334,0.05393701,3144.5,3144.1,3.894827]
[1731798719015,0.05393701,3144.5,3143.4,6.26623672]
[1731798719016,3.97841,3144.1,3143.5,0.7815]
[1731798719416,0.05385845,3144.0,3143.5,0.7815]
[1731798719895,3.18077,3143.9,3143.4,3.1812]
[1731798720315,3.18077,3143.9,3143.3,0.04769587]
[1731798720518,0.05381533,3143.8,3143.5,3.18114]
[1731798720718,0.05381533,3143.8,3143.4,3.18119]
[1731798720917,3.18082,3143.9,3143.3,0.44876946]
[1731798721121,0.05380434,3143.7,3143.3,0.04769587]
[1731798721286,3.23474533,3143.8,3143.3,0.04769587]
[1731798721489,0.05379334,3143.6,3143.3,0.04769587]
[1731798721932,3.18074,3144.0,3143.4,3.1812]
[1731798722135,0.05378234,3143.5,3143.4,4.02731761]
[1731798722336,3.18105,3143.7,3143.3,0.37061046]
[1731798722507,3.18105,3143.7,3143.3,0.04769587]
[1731798722692,0.05379334,3143.6,3143.3,0.04769587]
[1731798723040,3.18105,3143.7,3143.3,0.04769587]
[1731798723192,0.07952633,3143.9,3143.3,0.04769587]
[1731798723398,0.05195066,3143.6,3143.3,0.04769587]
[1731798723643,0.07952634,3144.0,3143.3,0.45523156]
[1731798723948,0.05193967,3143.5,3143.3,0.45523156]
[1731798724236,0.05186155,3143.4,3143.3,0.45523156]
[1731798724638,3.26021634,3144.0,3143.3,0.45523156]
[1731798724939,0.05186155,3143.4,3143.3,0.04769587]
[1731798725376,3.26021634,3144.0,3143.3,0.04769587]
[1731798725583,0.07952634,3144.0,3143.3,0.04769587]
[1731798725747,0.05191654,3143.9,3143.7,3.18095]
[1731798725934,0.05191654,3143.9,3143.8,3.24448015]
[1731798726138,0.8186,3144.7,3143.8,7.66952516]
[1731798726454,0.04686338,3144.6,3144.3,3.1803]
[1731798726628,0.04686338,3144.6,3144.4,3.18025]
[1731798726832,0.22255732,3144.9,3144.4,3.18025]
[1731798727043,0.1430529,3144.9,3144.5,3.18013]
[1731798727277,0.1430529,3144.9,3144.5,4.0262297]
[1731798727278,0.04688536,3144.8,3144.5,4.0262297]
[1731798727445,0.04688536,3144.8,3144.7,3.17995]
[1731798727650,0.04688536,3144.8,3144.7,3.2435406]
[1731798727974,0.1430529,3144.9,3144.5,4.598605]
[1731798728336,0.04700692,3144.8,3144.7,3.17995]
[1731798729298,0.1430529,3144.9,3144.8,3.17985]
[1731798729442,0.1430529,3144.9,3144.8,3.24344048]
[1731798729646,0.19007081,3144.9,3144.6,0.4598605]
[1731798729843,0.1430529,3144.9,3144.6,3.18004]
[1731798730102,0.04700692,3144.8,3144.6,3.18004]
[1731798730659,0.1430529,3144.9,3144.5,0.06359609]
[1731798730961,0.1430529,3144.9,3144.6,3.18002]
[1731798731270,0.1430529,3144.9,3144.5,3.18015]
[1731798731271,0.04700692,3144.8,3144.5,3.18015]
[1731798731484,0.04700692,3144.8,3144.7,3.17995]
[1731798731656,0.04700692,3144.8,3144.5,3.498165]
[1731798732065,0.1430529,3144.9,3144.6,3.18004]
[1731798732302,0.04699593,3144.7,3144.6,3.18004]
[1731798732636,0.04699593,3144.7,3144.2,3.18039]
[1731798733211,0.04699498,3144.6,3144.2,3.18039]
[1731798733560,0.04699498,3144.6,3144.0,0.06360516]
[1731798733768,0.07950645,3144.8,3144.4,3.18017]
[1731798733969,0.1430529,3144.9,3144.6,3.18003]
[1731798733970,0.04700597,3144.7,3144.6,3.18003]
[1731798734299,0.04700597,3144.7,3144.1,3.18055]
[1731798734460,0.22255405,3144.9,3144.1,3.18055]
[1731798734461,3.17993,3144.8,3144.1,3.18055]
[1731798734660,0.04695614,3144.6,3144.1,3.18055]
[1731798734862,3.30642336,3144.7,3144.0,3.18057]
[1731798735181,3.30642336,3144.7,3143.9,3.96326]
[1731798735182,3.22713019,3144.6,3143.9,3.96326]
[1731798735387,3.18035,3144.3,3143.7,3.18089]
[1731798735593,0.04700495,3144.2,3143.8,3.18077]
[1731798735775,0.8186,3144.4,3143.9,3.1807]
[1731798736104,0.04699839,3144.3,3143.8,3.577097]
[1731798736267,3.18059,3144.1,3143.6,3.18102]
[1731798736469,3.18059,3144.1,3143.4,3.18123]
[1731798736470,0.8186,3143.9,3143.4,3.18123]
[1731798736704,0.8186,3143.9,3143.3,0.04769587]
[1731798736705,0.07952466,3143.8,3143.3,0.04769587]
[1731798737018,0.12642544,3143.8,3143.3,3.87008646]
[1731798737364,0.12642544,3143.8,3143.4,3.18126]
[1731798738360,3.30730544,3143.8,3143.3,0.68874646]
[1731798738563,3.18123,3143.5,3143.3,0.04769587]
[1731798738875,0.94499023,3143.4,3143.3,0.04769587]
[1731798739059,4.12625023,3143.4,3143.3,0.04769587]
[1731798739259,0.94499023,3143.4,3143.3,0.04769587]
[1731798739488,4.12625023,3143.4,3143.3,0.04769587]
[1731798739669,0.94499023,3143.4,3143.3,0.04769587]
[1731798740310,0.86545679,3143.4,3143.3,0.04769587]
[1731798741523,0.86545679,3143.4,3143.3,4.03535587]
[1731798741524,0.04685679,3143.4,3143.3,4.03535587]
[1731798741701,0.04685679,3143.4,3143.3,5.14516598]
[1731798742035,0.07951812,3144.1,3143.5,3.18115]
[1731798742447,3.18087,3143.8,3143.3,0.85399587]
[1731798742629,0.07953303,3143.7,3143.3,0.04769587]
[1731798742788,3.95392,3143.6,3143.3,0.04769587]
[1731798742988,0.12629589,3143.5,3143.3,0.04769587]
[1731798743412,0.04675998,3143.5,3143.3,0.04769587]
[1731798744386,0.04675998,3143.5,3143.3,3.22904587]
[1731798744590,3.22791998,3143.5,3143.3,0.04769587]
[1731798745042,0.0795331,3143.4,3143.3,0.04769587]
[1731798745193,3.2607931,3143.4,3143.3,0.04769587]
[1731798745400,4.63030446,3143.4,3143.3,0.04769587]
[1731798746307,4.08030446,3143.4,3143.3,0.04769587]
[1731798749245,0.89904446,3143.4,3143.3,0.04769587]
[1731798749431,0.12624446,3143.4,3143.3,0.04769587]
[1731798750521,0.04671136,3143.4,3143.3,3.22905587]
[1731798750726,0.04671136,3143.4,3143.3,0.37060146]
[1731798750920,3.18097,3143.7,3143.3,0.37060146]
[1731798750921,0.07953306,3143.6,3143.3,0.04769587]
[1731798751453,0.04658191,3143.5,3143.3,0.04769587]
[1731798754052,3.99766,3143.4,3143.3,0.04769587]
[1731798754367,4.12379915,3143.4,3143.3,0.04769587]
[1731798757621,0.94253915,3143.4,3143.3,0.04769587]
[1731798757973,4.12379915,3143.4,3143.3,0.04769587]
[1731798758139,4.12090566,3143.4,3143.3,0.04769587]
[1731798761346,0.04660603,3143.4,3143.3,0.04769587]
[1731798761748,3.26063315,3143.6,3143.3,0.04769587]
[1731798762037,6.44179315,3143.6,3143.3,0.04769587]
[1731798762238,0.0465631,3143.5,3143.3,0.04769587]
[1731798762637,0.0465631,3143.5,3143.3,3.22905587]
[1731798762860,3.18086,3143.8,3143.4,0.32290559]
[1731798763060,0.07952828,3143.9,3143.4,0.32290559]
[1731798763284,3.26028828,3143.9,3143.4,3.50414559]
[1731798763444,3.18062,3144.1,3143.4,3.50414559]
[1731798763648,3.18062,3144.1,3143.6,3.18106]
[1731798763649,3.18056,3144.1,3143.6,3.18106]
[1731798763857,3.18056,3144.1,3143.5,0.8271]
[1731798764094,3.18049,3144.2,3143.5,0.8271]
[1731798764095,3.26001581,3144.2,3143.6,0.75124256]
[1731798764273,3.18049,3144.2,3143.7,3.18096]
[1731798764587,0.07951947,3144.3,3143.8,3.18083]
[1731798765103,3.25993947,3144.3,3143.7,3.18095]
[1731798765594,3.18042,3144.3,3143.7,3.18095]
[1731798765794,3.18042,3144.3,3143.8,3.18086]
[1731798765949,3.18042,3144.3,3143.9,0.318086]
[1731798766146,3.18037,3144.3,3143.9,0.318086]
[1731798766452,3.25997726,3144.2,3143.9,0.318086]
[1731798766651,3.25997726,3144.2,3143.6,3.18099]
[1731798767093,0.07951726,3144.2,3143.7,3.18096]
[1731798767296,3.25987825,3144.3,3143.7,3.18096]
[1731798767895,3.25990825,3144.3,3143.7,3.18096]
[1731798768098,3.25990825,3144.3,3143.8,0.32445746]
[1731798768589,3.18019,3144.5,3143.9,3.18074]
[1731798768590,0.0795182,3144.4,3143.9,3.18074]
[1731798768745,0.0795182,3144.4,3143.8,0.32445746]
[1731798768952,3.18036,3144.3,3143.9,0.8271]
[1731798769792,3.18036,3144.3,3143.9,1.227898]
[1731798770454,3.18062,3144.1,3143.9,0.8271]
[1731798770657,3.18062,3144.1,3143.6,0.8271]
[1731798771097,3.18068,3144.0,3143.6,0.8271]
[1731798772191,3.18077,3143.9,3143.6,0.8271]
[1731798772396,3.18088,3143.8,3143.6,0.43312656]
[1731798772583,3.18088,3143.8,3143.4,0.32290559]
[1731798772951,0.07952229,3143.9,3143.4,0.32290559]
[1731798773200,3.18126,3143.4,3143.3,0.04769587]
[1731798773798,3.22645809,3143.4,3143.3,0.04769587]
[1731798774684,4.02445809,3143.4,3143.3,0.04769587]
[1731798775606,5.07108711,3143.4,3143.3,0.04769587]
[1731798777285,5.62108711,3143.4,3143.3,0.04769587]
[1731798780810,8.63051626,3143.4,3143.3,0.04769587]
[1731798781716,3.18225,3142.5,3142.0,0.82]
[1731798781915,6.36452,3142.5,3142.0,0.82]
[1731798782239,0.04341796,3142.4,3142.0,0.82]
[1731798782395,0.04341796,3142.4,3142.1,0.400278]
[1731798782936,3.18241,3142.3,3142.1,0.400278]
[1731798783132,3.22581696,3142.3,3142.0,0.82]
[1731798783328,0.04340696,3142.3,3142.0,0.82]
[1731798783718,3.18225,3142.5,3142.0,0.82]
[1731798783901,0.04339595,3142.2,3142.0,0.82]
[1731798784101,3.18225,3142.5,3142.1,0.400272]
[1731798784826,3.26185176,3142.4,3142.1,0.400272]
[1731798784993,0.07956176,3142.4,3142.1,0.400272]
[1731798785198,3.26172176,3142.6,3142.1,0.400272]
[1731798785509,3.18218,3142.5,3142.1,0.400272]
[1731798785698,3.18218,3142.5,3142.0,0.82]
[1731798786366,0.0795617,3143.0,3142.2,0.8241]
[1731798786648,3.18168,3143.0,3142.6,0.8241]
[1731798786793,3.18181,3142.9,3142.6,0.8241]
[1731798787260,0.07954711,3143.0,3142.6,0.8241]
[1731798787400,3.18138,3143.3,3142.7,0.06363704]
[1731798787747,3.18138,3143.3,3142.7,3.24556704]
[1731798787916,3.26081733,3143.4,3142.8,0.4069667]
[1731798788097,3.1814,3143.3,3142.8,0.4069667]
[1731798788304,6.44237026,3143.3,3142.8,0.4069667]
[1731798788641,3.26094026,3143.3,3142.8,0.4069667]
[1731798788958,0.04339307,3143.2,3142.8,0.4069667]
[1731798789100,3.26094026,3143.3,3142.9,0.35888967]
[1731798789316,0.04338207,3143.1,3142.9,0.35888967]
[1731798789629,3.26102028,3143.2,3142.9,0.35888967]
[1731798789959,3.18219,3142.5,3142.0,0.8241]
[1731798790165,0.07955712,3142.4,3142.0,4.00678]
[1731798790478,0.04330505,3142.4,3142.1,3.18255]
[1731798790665,3.26160818,3142.7,3142.2,0.718933]
[1731798790958,3.18208,3142.6,3142.2,0.718933]
[1731798791162,0.07955824,3142.5,3142.2,0.718933]
[1731798791317,0.12287429,3142.5,3142.2,0.718933]
[1731798792847,0.04331605,3142.5,3142.2,0.718933]
[1731798793461,3.18228,3142.4,3142.0,0.8241]
[1731798793646,3.18211,3142.6,3142.0,0.8241]
[1731798793967,0.07955819,3142.5,3142.0,0.8241]
[1731798794120,3.30510424,3142.5,3142.0,0.8241]
[1731798794677,3.30510424,3142.5,3142.0,4.07035655]
[1731798794678,0.04331605,3142.5,3142.0,4.07035655]
[1731798794836,0.04331605,3142.5,3142.1,0.40703565]
[1731798795493,0.04331605,3142.5,3142.1,3.58961565]
[1731798795637,0.04331605,3142.5,3142.1,0.40703565]
[1731798795839,3.18234,3142.4,3142.1,0.40703565]
[1731798796057,3.18234,3142.4,3142.0,0.8241]
[1731798796266,0.043284,3142.3,3142.0,0.8241]
[1731798796469,3.225664,3142.3,3142.0,0.8241]
[1731798797844,3.18258,3142.1,3142.0,0.8241]
[1731798798043,3.225664,3142.3,3142.0,0.8241]
[1731798798282,0.0432482,3142.1,3142.0,0.8241]
[1731798798494,3.18238,3142.3,3142.0,0.8241]
[1731798798780,3.18249,3142.2,3142.0,0.8241]
[1731798798985,0.04325921,3142.2,3142.0,0.8241]
[1731798799143,3.2618923,3142.4,3142.0,0.8241]
[1731798799341,0.0432482,3142.1,3142.0,0.8241]
[1731798799569,3.2618923,3142.4,3142.0,0.8241]
[1731798799777,0.0432482,3142.1,3142.0,0.8241]
[1731798799961,3.18239,3142.3,3142.0,0.8241]
[1731798800151,0.0432482,3142.1,3142.0,0.8241]
[1731798800352,0.0432482,3142.1,3141.8,0.04771801]
[1731798800679,3.2259082,3142.1,3141.8,0.04771801]
[1731798800828,3.18278,3141.9,3141.8,0.04771801]
[1731798801832,3.18261,3142.1,3141.8,0.04771801]
[1731798802038,0.07957883,3142.0,3141.8,0.04771801]
[1731798802184,0.07957066,3142.3,3141.8,0.86871801]
[1731798802389,0.0795672,3142.3,3141.8,0.86871801]
[1731798802702,3.18265,3142.1,3141.8,0.86871801]
[1731798802904,3.26222014,3142.1,3141.8,0.86871801]
[1731798803415,3.18278,3141.9,3141.8,0.04771801]
[1731798803934,3.22593589,3141.9,3141.8,0.04771801]
[1731798804432,0.04315589,3141.9,3141.8,0.04771801]
[1731798805234,3.26222073,3142.1,3141.8,0.04771801]
[1731798805531,3.18278,3141.9,3141.8,0.04771801]
[1731798806043,3.30550982,3141.9,3141.8,0.04771801]
[1731798806225,3.95000989,3141.9,3141.8,0.04771801]
[1731798807548,5.33130989,3141.9,3141.8,0.04771801]
[1731798808045,8.40635661,3141.9,3141.8,0.04771801]
[1731798808195,8.32678268,3141.9,3141.8,0.04771801]
[1731798810526,8.33605668,3141.9,3141.8,0.04771801]
[1731798811599,8.33605668,3141.9,3141.8,8.01e-06]
[1731798811600,11.34548583,3141.9,3141.8,8.01e-06]
[1731798813238,11.74488885,3141.9,3141.8,8.01e-06]
[1731798815134,11.34548583,3141.9,3141.8,8.01e-06]
[1731798815794,11.74488885,3141.9,3141.8,8.01e-06]
[1731798816330,12.15467053,3141.9,3141.8,8.01e-06]
[1731798817346,3.18458,3140.2,3139.5,4.00614]
[1731798817499,3.18458,3140.2,3139.6,3.585714]
[1731798817695,0.04199174,3140.1,3139.6,3.585714]
[1731798818140,0.12160864,3140.1,3139.6,3.585714]
[1731798818441,0.04199174,3140.1,3139.7,3.18495]
[1731798818645,0.07961692,3140.3,3139.8,4.3644464]
[1731798818791,0.07961692,3140.2,3139.8,4.3644464]
[1731798818995,0.04200277,3140.2,3139.8,4.3644464]
[1731798819342,0.04199174,3140.1,3139.8,4.3644464]
[1731798819492,0.07961693,3140.5,3140.1,0.821]
[1731798819688,3.18392,3140.8,3140.1,0.821]
[1731798819689,0.04197454,3140.4,3140.1,0.821]
[1731798819892,0.07961357,3140.7,3140.1,0.821]
[1731798819893,3.18411,3140.6,3140.1,0.821]
[1731798820098,0.04198556,3140.5,3140.3,3.18434]
[1731798820397,0.07961161,3141.0,3140.4,4.0053]
[1731798820707,0.07959946,3141.1,3140.5,3.58466]
[1731798820936,3.26318946,3141.1,3140.5,3.58466]
[1731798821300,3.1837,3141.0,3140.5,3.58466]
[1731798821635,0.07959745,3140.9,3140.5,3.58466]
[1731798821844,3.1837,3141.0,3140.5,0.40053]
[1731798822005,0.07959749,3140.9,3140.5,0.40053]
[1731798823440,0.07959749,3140.9,3140.5,3.58472]
[1731798823946,3.26321749,3141.1,3140.5,3.58472]
[1731798824144,2.91824086,3141.1,3140.6,0.440572]
[1731798824452,0.01670186,3141.0,3140.6,0.440572]
[1731798824595,3.20041186,3141.0,3140.6,0.440572]
[1731798824795,3.20041186,3141.0,3140.5,0.40053]
[1731798825547,3.20041186,3141.0,3140.5,3.58472]
[1731798826042,3.18387,3140.9,3140.5,0.40053]
[1731798826262,3.1841,3140.6,3140.4,0.821]
[1731798826394,3.20090186,3140.5,3140.4,0.821]
[1731798826601,3.18433,3140.4,3139.9,0.7871]
[1731798826828,0.01670186,3140.5,3140.0,0.397193]
[1731798827519,0.01670186,3140.9,3140.3,3.18434]
[1731798827899,3.20051186,3140.9,3140.3,3.18434]
[1731798828351,3.18391,3140.8,3140.2,3.18446]
[1731798828643,0.01670186,3140.7,3140.3,3.1844]
[1731798828943,0.01670186,3140.7,3140.3,3.58155]
[1731798829341,3.18428,3140.5,3140.1,0.7871]
[1731798829504,3.20098186,3140.5,3140.1,0.7871]
[1731798830615,0.01670186,3140.4,3140.1,0.7871]
[1731798832356,3.20107186,3140.4,3140.1,0.7871]
[1731798832508,0.7597,3140.7,3140.1,0.7871]
[1731798832509,0.01670186,3140.6,3140.1,0.7871]
[1731798833104,0.01670186,3140.6,3140.1,3.97164]
[1731798833308,0.01670186,3140.6,3140.2,0.397164]
[1731798833618,0.04197805,3140.5,3140.1,3.97169]
[1731798833833,0.04197805,3140.5,3140.4,3.1843]
[1731798834008,0.04197805,3140.5,3140.4,3.9714]
[1731798834355,0.04197805,3140.5,3140.4,3.97131]
[1731798834560,3.20041186,3141.0,3140.4,3.97131]
[1731798834745,3.20041186,3141.0,3140.5,0.397131]
[1731798835552,0.01670186,3141.0,3140.5,3.581321]
[1731798835857,0.01670186,3141.1,3140.5,3.581321]
[1731798836158,0.01670186,3141.1,3140.5,0.397131]
[1731798836328,3.1837,3141.0,3140.4,3.97139]
[1731798836655,3.18391,3140.8,3140.4,0.7871]
[1731798836858,0.01670186,3140.9,3140.4,0.7871]
[1731798837259,0.01670186,3140.9,3140.4,3.97139]
[1731798837416,3.1839,3140.8,3140.4,0.7871]
[1731798837625,0.01670186,3140.9,3140.4,1.184242]
[1731798838076,0.01670186,3141.1,3140.5,3.18414]
[1731798838582,0.01670186,3141.1,3140.5,6.36827]
[1731798838789,3.20029186,3141.1,3140.5,3.18413]
[1731798838957,3.20029186,3141.1,3140.6,0.4368372]
[1731798839807,0.01670186,3141.1,3140.6,0.4368372]
[1731798840010,0.7597,3141.1,3140.0,0.7871]
[1731798840296,3.1841,3140.6,3140.0,3.97175]
[1731798840450,3.1841,3140.6,3140.0,4.687399]
[1731798840451,0.01670186,3140.5,3140.0,4.687399]
[1731798840648,0.05731471,3140.5,3140.0,4.687399]
[1731798840907,3.24159471,3140.5,3140.0,1.502749]
[1731798841576,3.18435,3140.4,3140.0,1.502749]
[1731798841859,3.18445,3140.3,3140.0,1.502749]
[1731798842188,3.24182165,3140.2,3139.7,0.8176]
[1731798842571,0.05728165,3140.2,3139.7,4.00254]
[1731798842876,0.05728165,3140.2,3139.7,4.72131]
[1731798843453,0.05728165,3140.2,3139.7,1.53637]
[1731798843656,3.18477,3140.0,3139.7,0.8176]
[1731798843852,3.20154186,3139.9,3139.3,0.04775551]
[1731798844053,3.185,3139.8,3139.4,0.8176]
[1731798844295,3.20178186,3139.7,3139.4,0.8176]
[1731798844499,3.24219345,3139.7,3139.4,0.8176]
[1731798844913,3.18512,3139.6,3139.4,0.8176]
[1731798845196,0.0570914,3139.5,3139.3,0.04775551]
[1731798845401,0.04038954,3139.5,3139.3,3.23309551]
[1731798845813,0.01670186,3139.8,3139.4,3.18532]
[1731798846105,3.18436,3140.4,3139.5,0.06370664]
[1731798846319,0.01670186,3140.3,3139.6,0.8176]
[1731798846466,0.8158,3140.7,3139.6,0.8176]
[1731798846467,3.18437,3140.4,3139.7,3.18495]
[1731798846662,3.18421,3140.5,3139.9,3.18478]
[1731798846859,3.20102186,3140.4,3139.9,3.18478]
[1731798847276,3.20102186,3140.4,3139.8,0.40662435]
[1731798847277,3.18444,3140.3,3139.8,0.40662435]
[1731798847477,0.01670186,3140.2,3139.8,0.40662435]
[1731798848218,0.01670186,3140.2,3139.6,0.8176]
[1731798848502,3.18462,3140.1,3139.6,0.8176]
[1731798848707,0.03899685,3140.1,3139.8,3.18491]
[1731798849058,0.03899685,3140.1,3140.0,3.18471]
[1731798849584,0.03899685,3140.1,3139.8,3.18491]
[1731798849763,0.01670186,3140.4,3139.9,0.318491]
[1731798849963,0.03901889,3140.3,3140.0,3.18465]
[1731798850362,0.03901889,3140.3,3139.9,3.503301]
[1731798850564,3.18424,3140.5,3140.0,3.18471]
[1731798850565,0.01670186,3140.4,3140.0,3.18471]
[1731798850792,0.03901889,3140.3,3140.0,3.18471]
[1731798851607,0.01670186,3140.6,3140.3,0.8176]
[1731798851904,3.20053186,3140.9,3140.3,0.8176]
[1731798852111,3.20053186,3140.9,3140.4,3.18427]
[1731798852270,3.20053186,3140.9,3140.4,3.902908]
[1731798852903,0.01670186,3140.9,3140.5,3.1842]
[1731798853116,0.01670186,3141.0,3140.5,3.1842]
[1731798854712,6.3669,3141.3,3140.4,0.718638]
[1731798854875,6.3669,3141.3,3140.6,3.18404]
[1731798854876,0.01670186,3141.2,3140.6,3.18404]
[1731798855471,3.20023186,3141.2,3140.6,3.18404]
[1731798856293,3.20023186,3141.2,3140.6,6.36806]
[1731798856507,3.20023186,3141.2,3140.3,0.8176]
[1731798856508,0.01670186,3141.2,3140.3,0.8176]
[1731798856679,0.56670186,3141.3,3140.3,0.8176]
[1731798856875,3.18388,3140.9,3140.2,3.18445]
[1731798857102,0.01670186,3140.8,3140.2,3.18445]
[1731798857755,0.01670186,3140.8,3140.3,3.18431]
[1731798858410,3.20068186,3140.8,3140.2,3.1845]
[1731798858603,3.20068186,3140.8,3140.2,3.821416]
[1731798858604,3.18401,3140.7,3140.2,3.821416]
[1731798859357,3.18401,3140.7,3140.2,0.636916]
[1731798859843,3.18401,3140.7,3140.2,3.821406]
[1731798861150,3.20033186,3141.1,3140.5,3.18414]
[1731798861214,3.20033186,3141.1,3140.6,3.584254]
[1731798862063,0.01670186,3141.1,3140.6,0.400174]
[1731798862308,3.18315,3141.6,3140.7,0.0636787]
[1731798862473,0.01670186,3141.7,3141.0,3.18364]
[1731798862688,0.03682794,3141.5,3140.9,0.06366796]
[1731798862954,0.01670186,3141.8,3141.4,0.8013]
[1731798863422,3.18272,3142.0,3141.4,3.98456]
[1731798863423,3.19942186,3142.0,3141.4,3.98456]
[1731798863617,0.03684997,3141.7,3141.5,3.18318]
[1731798863817,3.18272,3142.0,3141.5,3.18318]
[1731798864171,0.01670186,3141.9,3141.5,3.18318]
[1731798864314,0.03686098,3141.8,3141.7,3.18298]
[1731798864514,3.18259,3142.1,3141.6,0.398448]
[1731798864945,0.036883,3142.0,3141.6,3.18307]
[1731798865129,3.18249,3142.2,3141.6,3.18307]
[1731798865313,0.01670186,3142.1,3141.6,3.18307]
[1731798865642,3.18269,3142.0,3141.4,0.8013]
[1731798866014,0.03687199,3141.9,3141.4,0.8013]
[1731798866227,0.03687199,3141.9,3141.4,0.86495821]
[1731798866472,0.01670186,3142.1,3141.5,3.18312]
[1731798866664,0.03686098,3141.8,3141.5,3.18312]
[1731798866858,7.15487,3142.4,3141.5,3.18312]
[1731798867064,3.19908186,3142.3,3141.7,3.18298]
[1731798867460,0.01670186,3142.3,3141.8,3.18288]
[1731798867770,3.18254,3142.2,3141.4,1.20612682]
[1731798867980,3.18338,3141.4,3141.0,0.7722]
[1731798868266,3.99518,3142.0,3140.7,3.18395]
[1731798868267,3.20011186,3141.3,3140.7,3.95615]
[1731798868555,0.01670186,3141.3,3140.8,3.18388]
[1731798868761,3.19997186,3141.5,3140.9,3.897793]
[1731798869425,3.19997186,3141.5,3140.9,0.714003]
[1731798869656,3.19997186,3141.5,3140.9,3.18377]
[1731798870995,3.18327,3141.5,3140.9,3.18377]
[1731798871295,0.01670186,3141.6,3141.0,3.18362]
[1731798871494,3.1832,3141.5,3141.0,3.18362]
[1731798871632,0.01670186,3141.6,3141.0,3.18362]
[1731798871843,0.01670186,3141.6,3141.1,3.18359]
[1731798872569,3.19980186,3141.6,3141.0,3.18369]
[1731798872932,3.18319,3141.5,3141.0,3.18369]
[1731798873164,3.18342,3141.3,3140.7,0.7722]
[1731798873345,3.18366,3141.1,3140.5,3.1842]
[1731798873534,3.20040186,3141.0,3140.5,3.1842]
[1731798873731,0.01670186,3141.0,3140.5,3.1842]
[1731798874083,3.18342,3141.3,3140.6,3.18406]
[1731798874084,0.01670186,3141.2,3140.6,3.18406]
[1731798874234,3.20028186,3141.2,3140.6,3.18406]
[1731798874436,3.18381,3140.9,3140.4,0.7722]
[1731798874762,0.01670186,3140.8,3140.2,3.18444]
[1731798874946,0.82920186,3140.8,3140.1,0.7722]
[1731798875144,4.01314186,3140.8,3140.2,3.1845]
[1731798875366,0.82920186,3140.8,3140.2,3.82142]
[1731798875529,0.01670186,3140.9,3140.4,3.95648]
[1731798875728,3.20044186,3141.0,3140.4,3.95648]
[1731798876567,3.20044186,3141.0,3140.5,3.1842]
[1731798878155,3.20044186,3141.0,3140.4,3.95648]
[1731798878592,0.0352411,3140.9,3140.4,3.95648]
[1731798879405,0.0352411,3140.9,3140.5,3.18418]
[1731798879691,0.0352411,3140.9,3140.4,0.7722]
[1731798881008,0.0352411,3140.9,3140.4,0.83587936]